bitfinex/quotes_ETHUSD_20250328
["timestamp","ask_amount","ask_price","bid_price","bid_amount"]
[1743137328741,12.61049534,1938.3,1937.5,5.16108]
[1743137328975,12.61049534,1938.3,1937.6,5.16088]
[1743137329181,0.55,1938.0,1936.6,0.0376457]
[1743137329483,3.0,1937.7,1936.6,5.2011557]
[1743137329692,11.855,1937.6,1937.0,5.1625]
[1743137330047,1.02251454,1937.4,1936.9,5.16276]
[1743137330345,0.55,1937.3,1936.7,5.16326]
[1743137330539,0.55,1937.3,1936.6,0.0376457]
[1743137330751,0.55,1937.0,1936.6,0.0376457]
[1743137331053,11.261,1936.9,1936.6,0.0376457]
[1743137331446,3.55,1936.8,1936.6,0.0376457]
[1743137332473,1.03207781,1936.7,1936.6,0.0376457]
[1743137333048,1.03207781,1936.7,1936.6,5.2013257]
[1743137333267,11.229,1936.7,1936.6,5.2013257]
[1743137333579,11.221,1936.7,1936.6,5.2013257]
[1743137333883,11.206,1936.7,1936.6,5.2013257]
[1743137334775,11.206,1936.7,1936.6,0.0376457]
[1743137335195,11.756,1936.7,1936.6,0.0376457]
[1743137335480,11.206,1936.7,1936.6,0.0376457]
[1743137336171,11.756,1936.7,1936.6,0.0376457]
[1743137336958,15.9316,1936.7,1936.6,0.0376457]
[1743137337365,6.55,1936.6,1936.4,0.005]
[1743137337588,6.32502084,1936.2,1936.1,0.05]
[1743137337752,18.61152292,1936.2,1936.1,0.05]
[1743137337952,41.84303292,1936.2,1936.1,0.05]
[1743137338172,33.76004992,1936.2,1936.1,0.05]
[1743137339355,3.55,1936.1,1934.9,5.16805]
[1743137339697,3.55,1935.7,1934.9,5.16805]
[1743137339897,3.55,1935.7,1934.9,5.16818]
[1743137340107,3.55,1935.7,1934.9,5.16804]
[1743137340289,0.55,1935.7,1934.8,5.16849]
[1743137340600,11.028,1935.7,1935.4,5.16688]
[1743137340799,11.028,1935.7,1935.6,5.16635]
[1743137340973,1.01337144,1936.2,1936.1,5.16502]
[1743137341172,11.022,1936.5,1936.4,5.16422]
[1743137341601,11.001,1937.0,1936.6,5.16344]
[1743137341801,11.001,1937.0,1936.9,5.16288]
[1743137342000,0.05,1937.9,1936.5,5.16395]
[1743137342205,10.986,1937.8,1937.1,5.16235]
[1743137342501,10.986,1937.8,1936.1,14.5]
[1743137342502,3.32502084,1937.7,1936.1,5.16502]
[1743137342704,14.58982864,1937.4,1936.8,5.16293]
[1743137343001,1.45898286,1937.3,1936.3,5.16448]
[1743137343200,1.45898286,1937.3,1936.6,5.16357]
[1743137343388,0.55,1937.2,1936.6,10.32705]
[1743137343595,10.977,1937.1,1936.6,5.16346]
[1743137343768,10.977,1937.1,1936.7,5.16338]
[1743137344169,10.977,1937.1,1936.0,6.72923]
[1743137344504,10.977,1937.1,1936.5,5.16373]
[1743137344720,3.55,1937.0,1935.7,5.16607]
[1743137344886,3.55,1937.0,1936.3,5.16432]
[1743137345081,3.55,1937.0,1936.3,5.16433]
[1743137345279,3.55,1937.0,1936.0,5.16526]
[1743137345280,3.55,1937.0,1936.0,5.16505]
[1743137345480,0.55,1936.8,1936.1,5.16497]
[1743137345801,0.55,1936.8,1936.0,5.16523]
[1743137346199,0.55,1936.6,1936.0,5.16525]
[1743137346376,3.55,1936.4,1935.4,5.16671]
[1743137346573,3.0,1936.1,1935.4,5.16671]
[1743137346787,0.55,1936.0,1935.2,5.1672]
[1743137346988,0.55,1936.0,1935.2,10.33445]
[1743137347203,0.55,1936.0,1935.1,1.6113]
[1743137347404,0.55,1936.0,1935.4,5.16675]
[1743137347708,1.01840013,1936.1,1935.8,5.16582]
[1743137347896,3.32502084,1936.8,1936.0,5.1651]
[1743137348097,1.04800599,1936.6,1936.3,5.16436]
[1743137348280,1.04800599,1936.6,1936.5,5.16395]
[1743137348476,3.32502084,1937.4,1936.5,5.16395]
[1743137348793,3.32502084,1937.4,1936.7,5.16318]
[1743137348794,11.12850208,1937.3,1936.7,5.16318]
[1743137348997,11.12850208,1937.3,1936.6,5.16368]
[1743137349308,1.03641209,1937.1,1936.7,5.16323]
[1743137349807,1.03641209,1937.1,1936.0,5.16528]
[1743137350028,1.03641209,1937.1,1936.4,5.16421]
[1743137350220,4.2054769,1937.9,1937.0,5.1625]
[1743137350422,1.05152557,1937.4,1937.0,5.16241]
[1743137350587,11.14754769,1937.8,1937.0,5.16246]
[1743137350788,11.14754769,1937.8,1937.1,5.1622]
[1743137350989,0.55,1937.4,1936.6,5.16353]
[1743137351191,1.04759192,1937.5,1937.0,5.16246]
[1743137351376,1.04759192,1937.5,1937.0,5.1625]
[1743137351580,1.04759192,1937.5,1936.7,5.1634]
[1743137351821,1.04759192,1937.5,1936.8,0.05161907]
[1743137351991,1.04759192,1937.5,1937.2,5.16183]
[1743137352190,1.04759192,1937.5,1936.4,5.16422]
[1743137352191,10.727,1937.8,1937.3,5.16167]
[1743137352507,0.05,1937.9,1937.4,5.16138]
[1743137352508,10.689,1937.7,1937.4,5.16138]
[1743137352819,10.689,1937.7,1937.6,5.16102]
[1743137352980,10.689,1937.7,1937.5,5.16114]
[1743137353178,10.689,1937.7,1937.6,5.21262681]
[1743137353382,10.689,1937.7,1937.6,5.16102]
[1743137353812,10.689,1937.7,1937.6,5.21262294]
[1743137354312,10.689,1937.7,1937.6,5.16102]
[1743137355010,0.05,1937.9,1937.5,5.16114]
[1743137355331,0.05,1937.9,1937.4,5.16141]
[1743137355532,0.55,1937.8,1937.0,5.16241]
[1743137355683,0.05,1937.9,1937.6,5.16076]
[1743137355887,0.05,1937.9,1937.3,0.05160995]
[1743137356192,0.55,1937.5,1936.8,5.16297]
[1743137356399,10.621,1937.4,1937.3,5.16182]
[1743137356984,10.621,1937.4,1937.3,5.21343158]
[1743137357280,0.05,1937.9,1937.8,5.16049]
[1743137357603,0.05,1937.9,1937.8,5.21208847]
[1743137358544,0.05,1937.9,1937.4,5.1613]
[1743137358815,1.1133,1937.9,1937.5,5.16126]
[1743137359016,1.1133,1937.9,1937.4,5.16154]
[1743137359213,0.05,1937.9,1937.2,1.5667]
[1743137359414,0.05,1937.9,1937.6,5.16089]
[1743137359613,0.05,1937.9,1937.7,5.1606]
[1743137360209,0.05,1937.9,1937.5,5.16112]
[1743137360414,0.05,1937.9,1937.6,5.16099]
[1743137360715,0.55,1937.8,1937.2,5.16208]
[1743137360912,4.1133,1937.9,1937.3,5.1617]
[1743137361211,10.438,1937.8,1937.7,5.16075]
[1743137361725,10.438,1937.8,1937.6,5.16101]
[1743137361726,10.438,1937.8,1937.6,5.16089]
[1743137362083,10.438,1937.8,1937.7,5.16075]
[1743137362284,0.05,1937.9,1937.8,5.16049]
[1743137363613,1e-05,1937.9,1937.8,9.3159669]
[1743137364517,1e-05,1937.9,1937.8,5.16049]
[1743137365627,1e-05,1937.9,1937.1,5.16209]
[1743137365792,10.284,1937.8,1937.1,5.16233]
[1743137366119,11.367401,1937.8,1936.8,1.6271]
[1743137366320,10.284,1937.8,1937.3,10.3233]
[1743137366997,10.284,1937.8,1937.3,10.32333]
[1743137367392,10.284,1937.8,1937.4,5.16152]
[1743137367821,0.55,1937.7,1936.6,5.16342]
[1743137368025,0.55,1937.7,1936.4,1.5058]
[1743137368026,8.7338769,1937.7,1936.4,10.32806]
[1743137368200,8.7338769,1937.7,1936.5,5.16378]
[1743137368404,8.7338769,1937.7,1936.6,5.16358]
[1743137368724,0.55,1937.5,1936.5,5.16378]
[1743137369229,1.59621461,1937.5,1936.8,5.163]
[1743137369399,1.04621461,1937.5,1937.1,5.16222]
[1743137369599,10.139,1937.4,1937.1,5.16222]
[1743137369929,10.139,1937.4,1937.0,5.16261]
[1743137370114,10.139,1937.4,1936.7,10.3267]
[1743137370423,10.139,1937.4,1936.4,5.16419]
[1743137370630,10.139,1937.4,1936.9,5.16269]
[1743137370944,10.139,1937.4,1937.2,5.16208]
[1743137371155,10.08,1937.3,1937.2,0.05161997]
[1743137371328,10.077,1937.4,1937.2,5.16208]
[1743137371641,10.077,1937.4,1937.2,5.16187]
[1743137371850,10.077,1937.4,1936.7,1.5656]
[1743137372008,10.077,1937.4,1937.0,5.16259]
[1743137372349,10.077,1937.4,1936.8,5.16312]
[1743137372546,11.0847,1937.4,1936.6,5.16351]
[1743137372846,11.0847,1937.4,1936.4,0.05162825]
[1743137373141,10.077,1937.4,1936.8,5.16298]
[1743137373344,1.05967939,1937.3,1936.3,6.72989]
[1743137373582,1.05967939,1937.3,1937.0,5.16247]
[1743137373749,10.077,1937.4,1936.8,5.1629]
[1743137374036,11.10128775,1937.4,1937.0,5.16236]
[1743137374195,10.077,1937.4,1937.2,5.16182]
[1743137374404,10.077,1937.4,1937.1,5.16229]
[1743137374598,10.077,1937.4,1936.9,5.16271]
[1743137374817,10.077,1937.4,1936.9,10.32544]
[1743137375244,10.077,1937.4,1936.9,5.16271]
[1743137375400,10.077,1937.4,1937.0,5.16258]
[1743137375605,9.947,1937.3,1936.9,5.16271]
[1743137375810,9.947,1937.3,1936.8,5.16308]
[1743137376111,9.947,1937.3,1937.0,5.16242]
[1743137376344,9.947,1937.3,1936.9,5.21423887]
[1743137376523,9.947,1937.3,1937.1,5.16217]
[1743137376898,9.947,1937.3,1937.2,5.16208]
[1743137377210,9.947,1937.3,1937.1,5.16217]
[1743137377411,9.947,1937.3,1937.1,5.21378806]
[1743137378121,9.947,1937.3,1936.7,5.16333]
[1743137378323,9.947,1937.3,1936.8,5.16295]
[1743137378633,9.947,1937.3,1936.8,10.32599]
[1743137378832,9.947,1937.3,1936.9,5.16286]
[1743137379447,9.947,1937.3,1936.3,6.73008]
[1743137379658,10.96293903,1937.3,1937.1,5.16235]
[1743137379943,9.947,1937.3,1937.2,5.16208]
[1743137380500,1e-05,1937.9,1937.3,5.16174]
[1743137380719,9.756,1937.8,1936.6,4.1554769]
[1743137380911,9.756,1937.8,1937.3,5.16171]
[1743137381114,9.756,1937.8,1937.4,5.16148]
[1743137381313,1.03880516,1937.5,1937.4,5.16148]
[1743137381732,9.756,1937.8,1937.3,5.16171]
[1743137381933,9.756,1937.8,1937.3,10.3234]
[1743137382121,9.756,1937.8,1937.4,5.16131]
[1743137382305,1.00973103,1937.6,1937.4,10.32266]
[1743137382506,1.00973103,1937.6,1937.2,5.16184]
[1743137382816,1.00973103,1937.6,1937.1,5.16214]
[1743137383017,1.00973103,1937.6,1937.0,5.16261]
[1743137383236,1.41070413,1937.6,1936.9,5.16273]
[1743137383431,0.55,1937.5,1936.9,5.16273]
[1743137383607,0.55,1937.5,1936.3,9.9929649]
[1743137383608,3.55,1937.5,1936.2,5.16455]
[1743137383803,3.55,1937.2,1936.1,5.16498]
[1743137384001,3.0,1937.0,1936.1,5.1648]
[1743137384214,0.55,1936.9,1936.2,5.16457]
[1743137384414,9.642,1937.1,1935.7,5.7445769]
[1743137384704,9.642,1937.1,1936.8,5.16292]
[1743137385039,9.642,1937.1,1936.8,10.32596]
[1743137385239,10.65938756,1937.1,1936.7,5.16325]
[1743137385533,10.65938756,1937.1,1936.9,5.16288]
[1743137385735,9.642,1937.1,1936.9,5.16288]
[1743137386038,9.642,1937.1,1936.9,5.16277]
[1743137386242,9.642,1937.1,1936.7,5.16315]
[1743137386440,9.642,1937.1,1936.3,5.16448]
[1743137386612,9.642,1937.1,1936.2,1.5891]
[1743137386815,1.05128071,1937.2,1936.5,5.16374]
[1743137387010,1e-05,1937.9,1937.6,5.16084]
[1743137387363,9.575,1937.8,1937.2,5.16183]
[1743137387520,10.532501,1937.8,1937.2,5.16183]
[1743137387721,4.02250969,1937.7,1937.0,6.71313]
[1743137388062,4.02250969,1937.7,1936.7,5.16322]
[1743137388063,4.02250969,1937.7,1937.2,5.16184]
[1743137388361,4.02250969,1937.7,1937.3,0.05161375]
[1743137388506,4.02250969,1937.7,1937.3,5.16164]
[1743137389130,4.02250969,1937.7,1937.2,5.16192]
[1743137389342,4.02250969,1937.7,1937.3,5.16173]
[1743137389343,9.508,1937.6,1937.3,5.16173]
[1743137389537,9.508,1937.6,1937.4,5.16138]
[1743137389754,9.508,1937.6,1937.3,5.16173]
[1743137389968,1.02250969,1937.7,1937.6,5.16102]
[1743137390263,9.487,1937.7,1937.5,5.16118]
[1743137390465,9.487,1937.7,1937.1,5.16216]
[1743137390768,10.4357,1937.7,1936.7,5.16339]
[1743137391113,10.4357,1937.7,1937.2,5.16195]
[1743137392661,10.4357,1937.7,1937.2,10.32393]
[1743137392828,1e-05,1937.9,1937.3,0.05161397]
[1743137393154,1e-05,1937.9,1937.8,5.16049]
[1743137393447,1e-05,1937.9,1937.8,5.21208287]
[1743137393833,1e-05,1937.9,1937.8,5.16049]
[1743137394063,1e-05,1937.9,1937.8,5.21208495]
[1743137394266,1e-05,1937.9,1937.6,5.16098]
[1743137394449,1e-05,1937.9,1937.7,10.3212]
[1743137394635,1e-05,1937.9,1937.8,5.16049]
[1743137394837,9.34401,1937.9,1937.7,5.16056]
[1743137395041,9.34401,1937.9,1937.5,10.32225]
[1743137395244,9.34401,1937.9,1937.6,5.1609]
[1743137395664,9.34401,1937.9,1937.4,5.16136]
[1743137395665,9.34401,1937.9,1937.5,5.16123]
[1743137395861,10.278411,1937.9,1937.2,5.16184]
[1743137396263,10.278411,1937.9,1937.2,10.32375]
[1743137396475,10.278411,1937.9,1937.2,5.16184]
[1743137396650,1.58960984,1937.8,1937.1,5.16216]
[1743137396849,2.77641192,1937.8,1937.2,5.16206]
[1743137397250,2.77641192,1937.8,1937.2,10.32395]
[1743137397474,2.77641192,1937.8,1937.3,5.1618]
[1743137397634,2.77641192,1937.8,1937.2,5.16189]
[1743137397841,2.77641192,1937.8,1937.2,5.16197]
[1743137398549,2.77641192,1937.8,1937.1,5.1621]
[1743137398941,0.27764119,1937.7,1937.2,5.16204]
[1743137399370,2.77641192,1937.8,1937.1,5.1621]
[1743137399536,2.77641192,1937.8,1937.1,5.1623]
[1743137399743,2.77641192,1937.8,1936.4,5.16408]
[1743137399744,0.55,1937.6,1936.4,5.16408]
[1743137400076,0.55,1937.3,1936.3,5.16431]
[1743137400243,3.55,1937.1,1936.4,5.16402]
[1743137400443,9.183,1937.2,1936.9,5.16265]
[1743137400672,9.183,1937.2,1936.1,5.16499]
[1743137400843,10.23409096,1937.2,1936.3,5.16448]
[1743137401043,10.23409096,1937.2,1936.8,5.16311]
[1743137401265,10.23409096,1937.2,1936.5,5.16372]
[1743137401454,10.23409096,1937.2,1936.7,5.16339]
[1743137401654,11.31250006,1937.2,1936.5,5.1637]
[1743137401854,11.31250006,1937.2,1936.5,5.16392]
[1743137402074,0.55,1937.1,1936.4,5.16418]
[1743137402373,1.73625001,1937.1,1936.4,5.16405]
[1743137402574,1.73625001,1937.1,1936.0,5.16515]
[1743137402778,4.73625001,1937.1,1935.9,5.16544]
[1743137402973,3.55,1936.8,1935.6,1.5338]
[1743137403278,3.55,1936.8,1935.8,5.16558]
[1743137403474,1.0291675,1936.3,1935.6,5.16624]
[1743137403675,9.658,1936.2,1935.5,5.16647]
[1743137403883,0.55,1936.0,1935.0,5.16795]
[1743137404089,0.55,1936.0,1935.4,5.16677]
[1743137404387,0.55,1936.0,1935.2,5.16727]
[1743137404572,0.55,1936.0,1935.3,5.16707]
[1743137404882,0.55,1936.0,1935.3,0.05166751]
[1743137405087,0.55,1936.0,1935.2,5.16741]
[1743137405389,1.0343418,1935.7,1935.2,0.05166732]
[1743137405681,9.113,1935.6,1935.0,5.16795]
[1743137405885,9.113,1935.6,1935.2,5.16719]
[1743137406086,9.113,1935.6,1935.1,5.16757]
[1743137406397,3.0,1935.5,1934.7,5.2833587]
[1743137406553,3.0,1935.5,1934.7,0.1148587]
[1743137406884,3.0,1935.5,1935.0,5.16769]
[1743137407183,1.02223394,1935.4,1935.1,0.0516717]
[1743137407552,1.02223394,1935.4,1935.1,0.05167172]
[1743137407754,3.0,1935.5,1935.0,5.21936173]
[1743137407985,3.0,1935.5,1934.9,5.1682]
[1743137408193,0.55,1935.7,1935.0,5.21960174]
[1743137408366,3.0,1935.5,1935.0,5.21960174]
[1743137408553,3.0,1935.5,1935.0,0.05167174]
[1743137408765,4.2043,1935.5,1935.0,0.05167174]
[1743137409304,4.2043,1935.5,1934.9,5.16797]
[1743137409600,4.2043,1935.5,1934.8,5.16831]
[1743137409804,4.2043,1935.5,1934.7,0.1148587]
[1743137410270,7.15371889,1934.8,1934.7,0.1148587]
[1743137410468,0.55,1934.6,1934.1,0.05]
[1743137410670,7.70371889,1934.2,1934.1,0.05]
[1743137410878,9.041,1934.2,1934.1,0.05]
[1743137411288,9.9451,1934.2,1934.1,0.05]
[1743137411488,9.041,1934.2,1934.1,0.05]
[1743137411688,9.041,1934.2,1934.1,5.22022]
[1743137411892,9.041,1934.2,1934.1,0.05]
[1743137412273,1.01995473,1934.4,1934.2,5.16991]
[1743137412573,9.047,1934.8,1934.7,5.16862]
[1743137412774,9.047,1934.8,1934.4,5.16956]
[1743137412972,9.9517,1934.8,1934.3,5.16963]
[1743137413272,9.9517,1934.8,1934.1,1.6357]
[1743137413493,3.0,1934.7,1934.1,0.05]
[1743137414168,3.0,1934.7,1934.1,5.22035]
[1743137414369,0.3,1934.6,1934.1,0.05]
[1743137415009,8.977,1934.5,1934.1,0.05]
[1743137415405,3.55,1934.4,1934.1,0.05]
[1743137415621,7.70371889,1934.4,1934.1,0.05]
[1743137416404,8.943,1934.3,1934.1,0.05]
[1743137417486,9.9431462,1934.3,1934.1,0.05]
[1743137419003,1.0001462,1934.3,1934.1,0.05]
[1743137419208,8.873,1934.2,1934.1,5.22034]
[1743137419517,8.873,1934.2,1934.1,0.05]
[1743137419887,1.05846204,1934.4,1934.1,0.05]
[1743137420072,8.858,1934.3,1934.1,0.05]
[1743137420275,9.8496462,1934.3,1934.1,0.05]
[1743137420498,1.05846204,1934.4,1934.1,0.05]
[1743137420710,1.05846204,1934.4,1934.3,5.16982]
[1743137420916,55.23728762,1935.7,1934.8,5.16849]
[1743137421105,8.838,1935.6,1934.8,10.33676]
[1743137421280,1.01752876,1935.1,1934.7,5.16864]
[1743137421490,8.828,1935.0,1934.5,5.16925]
[1743137421695,8.828,1935.0,1934.9,5.16822]
[1743137421899,8.828,1935.0,1934.6,5.16881]
[1743137422113,8.828,1935.0,1934.7,5.16857]
[1743137422300,9.7108,1935.0,1934.5,5.16926]
[1743137422515,9.7108,1935.0,1934.7,5.16873]
[1743137422687,8.828,1935.0,1934.6,5.16881]
[1743137423009,8.828,1935.0,1934.7,5.16853]
[1743137423218,1.03120773,1935.2,1935.1,5.16769]
[1743137423396,8.772,1935.2,1934.9,5.16804]
[1743137423608,8.772,1935.2,1935.0,5.1678]
[1743137423778,8.772,1935.2,1934.3,5.16977]
[1743137424086,8.772,1935.2,1934.9,5.16822]
[1743137424285,8.772,1935.2,1934.9,5.16812]
[1743137424480,8.772,1935.2,1934.7,5.16866]
[1743137424481,9.7550957,1935.2,1934.7,5.16866]
[1743137424680,9.7550957,1935.2,1934.7,5.16853]
[1743137424890,9.7550957,1935.2,1934.8,5.16833]
[1743137425077,9.7550957,1935.2,1934.7,5.16853]
[1743137425296,9.7550957,1935.2,1934.6,0.0516776]
[1743137425498,1.05895699,1935.3,1934.7,6.82484]
[1743137425729,1.05895699,1935.3,1935.2,5.16742]
[1743137426025,2.41916873,1935.7,1935.3,5.16715]
[1743137426312,8.697,1935.6,1935.4,5.16677]
[1743137426511,8.697,1935.6,1935.1,5.16748]
[1743137426825,9.80861687,1935.6,1935.2,10.33442]
[1743137427009,1.04372691,1935.5,1934.7,1.6562]
[1743137427220,4.04372691,1935.5,1934.7,5.16857]
[1743137427425,4.15371889,1935.1,1934.1,0.05]
[1743137427584,3.0,1934.9,1934.1,0.05]
[1743137427936,0.55,1934.8,1934.1,0.05]
[1743137428132,4.15371889,1934.5,1934.1,0.05]
[1743137428315,0.55,1934.3,1934.1,0.05]
[1743137429735,8.722,1934.5,1934.1,0.05]
[1743137429917,1.026465,1934.4,1934.1,0.05]
[1743137430239,47.21249158,1935.4,1934.5,5.16918]
[1743137430440,8.713,1935.3,1934.6,5.1689]
[1743137430591,8.713,1935.3,1934.4,5.16935]
[1743137430929,9.5743,1935.2,1934.5,5.16924]
[1743137431131,3.0,1935.1,1934.3,5.16957]
[1743137431331,3.16287703,1935.1,1934.6,10.33768]
[1743137431515,8.691,1935.0,1934.7,5.1687]
[1743137431685,8.691,1935.0,1934.6,5.16884]
[1743137431686,8.691,1935.0,1934.6,5.16899]
[1743137431887,8.691,1935.0,1934.7,5.1686]
[1743137432093,0.16287703,1934.9,1934.2,5.17009]
[1743137432302,0.16287703,1934.9,1934.3,5.16968]
[1743137432728,0.16287703,1934.9,1934.3,10.3394]
[1743137432902,0.16287703,1934.9,1934.4,5.16952]
[1743137433235,8.645,1934.8,1934.7,5.16861]
[1743137433405,8.77100387,1934.8,1934.6,5.16881]
[1743137433610,0.12600387,1934.8,1934.6,5.16881]
[1743137433840,8.636,1934.7,1934.5,5.16923]
[1743137434041,0.12600387,1934.6,1934.5,5.16923]
[1743137434225,8.636,1934.7,1934.6,5.16902]
[1743137434422,8.76200387,1934.7,1934.5,5.16923]
[1743137434629,8.76200387,1934.7,1934.5,5.16912]
[1743137434959,8.76200387,1934.7,1934.5,10.3383]
[1743137435111,8.76200387,1934.7,1934.6,5.16902]
[1743137435312,8.76200387,1934.7,1934.5,5.16912]
[1743137435824,8.76200387,1934.7,1934.6,5.16902]
[1743137436231,4.96e-06,1934.7,1934.6,1.08549905]
[1743137436542,3.46957974,1935.7,1935.6,5.16635]
[1743137436847,8.571,1935.9,1935.8,5.16582]
[1743137437020,1.01854488,1936.5,1936.3,5.16432]
[1743137437220,1.01854488,1936.5,1936.4,5.2158604]
[1743137437458,47.34710161,1937.7,1936.4,5.2156804]
[1743137437654,8.56,1937.6,1936.4,0.0516404]
[1743137437856,4.15371889,1937.7,1936.4,5.16409]
[1743137438161,1.02009849,1936.9,1936.5,5.16375]
[1743137438355,1.02009849,1936.9,1936.7,5.16339]
[1743137438655,8.539,1936.9,1936.8,5.16315]
[1743137438859,8.539,1936.9,1936.7,6.79996]
[1743137439054,8.539,1936.9,1936.8,5.16315]
[1743137439357,8.537,1937.3,1937.2,5.16208]
[1743137439746,8.537,1937.3,1937.1,5.1622]
[1743137440053,8.537,1937.3,1937.2,5.16208]
[1743137440560,1.01274475,1937.8,1937.3,1.5996]
[1743137440746,8.517,1937.8,1937.3,1.5996]
[1743137440952,0.8517,1937.7,1937.4,5.16154]
[1743137441271,8.517,1937.8,1937.3,6.76133]
[1743137441465,8.517,1937.8,1937.3,1.5996]
[1743137441756,0.10231492,1937.7,1937.3,1.5996]
[1743137442052,8.487,1937.6,1937.5,5.16124]
[1743137442256,0.1163093,1937.6,1937.5,5.16124]
[1743137442457,1e-05,1937.9,1937.8,5.16049]
[1743137443262,1e-05,1937.9,1937.7,5.16069]
[1743137443472,0.1098693,1937.8,1937.7,5.16054]
[1743137443655,0.1098693,1937.8,1937.5,1.5105]
[1743137443958,0.1098693,1937.8,1937.7,5.16075]
[1743137444462,8.5578693,1937.8,1937.6,5.16088]
[1743137444667,0.55,1937.6,1936.8,7.1157788]
[1743137444825,0.55,1937.4,1936.8,0.3978788]
[1743137445030,3.55,1937.2,1936.8,0.3978788]
[1743137445244,8.91361081,1937.1,1936.8,0.3978788]
[1743137445459,8.91361081,1937.1,1936.1,1.5549]
[1743137445663,0.55,1936.7,1935.8,5.16569]
[1743137445853,0.55,1936.5,1935.7,5.16595]
[1743137446051,0.55,1936.3,1935.4,5.16685]
[1743137446282,1.05531359,1936.1,1935.5,5.1666]
[1743137446439,0.10420489,1936.0,1935.5,5.1666]
[1743137446759,0.10420489,1936.0,1935.4,5.16668]
[1743137446959,0.10420489,1936.0,1935.3,1.6405]
[1743137446960,0.10420489,1936.0,1935.6,5.1661]
[1743137447164,0.10420489,1936.0,1935.9,5.16555]
[1743137447461,9.48925828,1936.4,1935.6,5.16611]
[1743137447663,0.55,1936.2,1935.4,5.16667]
[1743137447863,3.8438,1936.3,1935.6,5.16635]
[1743137448168,1.05125828,1936.4,1936.3,5.16448]
[1743137448370,8.412,1936.7,1936.6,5.16352]
[1743137448569,8.41,1936.7,1936.6,5.16352]
[1743137448739,8.41,1936.7,1936.5,5.16388]
[1743137448936,9.251,1936.7,1935.8,1.5845]
[1743137449164,9.251,1936.7,1936.4,5.16421]
[1743137449340,9.251,1936.7,1936.3,5.16442]
[1743137449965,9.251,1936.7,1936.2,10.32912]
[1743137450153,9.251,1936.7,1936.3,5.16443]
[1743137450464,9.251,1936.7,1936.2,5.16456]
[1743137450633,9.251,1936.7,1936.2,10.32916]
[1743137450839,9.251,1936.7,1935.8,6.7503]
[1743137451060,8.41,1936.7,1936.6,5.16368]
[1743137451460,1.03375974,1937.0,1936.5,5.16393]
[1743137451764,8.331,1936.7,1936.5,5.16384]
[1743137452172,8.331,1936.7,1936.5,5.16383]
[1743137452372,8.331,1936.7,1936.6,5.16368]
[1743137452566,8.331,1936.7,1936.4,5.16417]
[1743137452770,9.1641,1936.7,1935.8,1.5845]
[1743137453082,9.1641,1936.7,1936.3,5.16435]
[1743137453442,9.1641,1936.7,1936.1,5.16481]
[1743137453673,9.1641,1936.7,1936.2,5.16462]
[1743137453971,9.1641,1936.7,1935.8,1.5845]
[1743137454190,0.91641,1936.6,1936.2,10.32924]
[1743137454492,0.91641,1936.6,1936.2,5.16461]
[1743137454875,0.91641,1936.6,1936.3,5.16437]
[1743137455173,4.15371889,1937.3,1936.3,5.16437]
[1743137455174,4.15371889,1937.6,1936.7,5.16339]
[1743137455382,8.255,1937.5,1936.6,5.16368]
[1743137455582,8.255,1937.5,1936.8,5.16306]
[1743137455876,1.04886634,1937.5,1937.2,5.16192]
[1743137456173,1.04886634,1937.5,1937.2,5.16188]
[1743137456340,8.24,1937.4,1936.6,5.16356]
[1743137456544,8.24,1937.4,1936.9,10.32551]
[1743137456744,8.24,1937.4,1936.9,5.16271]
[1743137457082,0.824,1937.3,1937.1,5.1623]
[1743137457373,8.24,1937.4,1936.9,5.16274]
[1743137457549,8.24,1937.4,1936.5,1.5762]
[1743137457750,8.24,1937.4,1936.9,5.16283]
[1743137457949,8.24,1937.4,1936.9,0.05162223]
[1743137458163,0.824,1937.3,1936.7,5.16337]
[1743137458461,0.55,1937.2,1936.2,5.16471]
[1743137458668,3.55,1937.0,1935.8,1.5762]
[1743137458847,3.55,1936.7,1935.6,5.16624]
[1743137459048,3.55,1936.5,1935.7,5.16593]
[1743137459351,3.55,1936.5,1935.5,1.5762]
[1743137459553,3.55,1936.5,1935.7,5.16587]
[1743137459859,0.355,1936.4,1935.8,5.16569]
[1743137460178,1.01273423,1936.3,1935.5,1.5762]
[1743137460383,1.01273423,1936.3,1935.9,10.33068]
[1743137460584,1.01273423,1936.3,1935.9,5.1653]
[1743137460874,1.01273423,1936.3,1935.8,5.21724718]
[1743137461192,8.175,1936.2,1936.1,5.16487]
[1743137461475,8.175,1936.2,1936.0,5.16515]
[1743137461853,8.175,1936.2,1936.1,5.16502]
[1743137462379,8.9765,1936.2,1935.8,10.33137]
[1743137462574,8.159,1936.2,1935.5,5.16654]
[1743137462743,8.159,1936.2,1936.1,5.16502]
[1743137462940,8.159,1936.2,1935.9,5.16534]
[1743137463364,8.159,1936.2,1936.1,5.16502]
[1743137463571,8.159,1936.2,1936.0,5.1652]
[1743137463781,8.159,1936.2,1936.1,5.16502]
[1743137464453,1.04544983,1936.5,1936.4,5.16422]
[1743137464454,9.16844983,1936.5,1936.4,5.16422]
[1743137464770,8.123,1936.5,1936.4,5.16422]
[1743137464958,9.1521458,1936.8,1936.7,5.16342]